fUST/lending_fUST_20241003
["ID","MTS","AMOUNT","RATE_DAILY","PERIOD"]
[339759599,1727953820648,-701.38812793,0.00012129,2]
[339759740,1727953840030,-998.55500876,0.00012129,2]
[339759742,1727953840044,-2298.61187207,0.00012129,2]
[339759744,1727953840054,-209.088503,0.0001249,2]
[339759746,1727953840064,-447.825896,0.00012603,2]
[339759748,1727953840077,-587.0,0.00013233,2]
[339759750,1727953840087,-587.0,0.00013259,2]
[339759752,1727953840097,-466.68556127,0.00013298,2]
[339759754,1727953840107,-182.567009,0.00013422,2]
[339759756,1727953840117,-2255.07220922,0.00013561,2]
[339759758,1727953840127,-189.615,0.00013598,2]
[339759760,1727953840137,-500.0,0.00013673,2]
[339759762,1727953840147,-350.55244638,0.00013673,2]
[339759763,1727953840158,-500.0,0.00013673,2]
[339759764,1727953840169,-500.0,0.00013673,2]
[339759765,1727953840181,-500.0,0.00013673,2]
[339759766,1727953840198,-500.49907927,0.00013673,2]
[339759767,1727953840209,-500.0,0.00013673,2]
[339759768,1727953840221,-500.0,0.00013673,2]
[339759769,1727953840231,-500.0,0.00013673,2]
[339759770,1727953840241,-500.0,0.00013673,2]
[339759771,1727953840250,-500.0,0.00013673,2]
[339759772,1727953840262,-6236.8361092,0.00013677,2]
[339759773,1727953840272,-150.0,0.0001368,2]
[339759774,1727953840282,-525.0,0.0001368,2]
[339759775,1727953840292,-150.0,0.0001368,2]
[339759776,1727953840302,-1218.0,0.0001368,2]
[339759777,1727953840312,-151.0,0.00013688,2]
[339759778,1727953840322,-151.0,0.00013688,2]
[339759779,1727953840332,-151.0,0.00013688,2]
[339759780,1727953840341,-68772.29700086,0.00013688,2]
[339759819,1727953843060,-1178.27247151,0.00013598,2]
[339759821,1727953843070,-9189.84952366,0.00013688,2]
[339759862,1727953864623,-500.0,0.00013673,2]
[339759863,1727953864650,-300.0,0.00013687,2]
[339759864,1727953864677,-300.0,0.00013687,2]
[339759865,1727953875046,155.5,0.00013673,2]
[339759866,1727953893133,500.0,0.00010201,2]
[339759880,1727954338719,10000.0,0.00010205,2]
[339759881,1727954345025,10000.0,0.00010205,2]
[339759882,1727954351824,10000.0,0.00010205,2]
[339759883,1727954358205,10000.0,0.00010205,2]
[339759884,1727954366320,10000.0,0.00010205,2]
[339759885,1727954375587,10000.0,0.00010205,2]
[339759886,1727954394842,1942.5,0.00010205,2]
[339759912,1727954970178,-300.0,0.00011211,2]
[339759913,1727954970203,-300.0,0.00011211,2]
[339759914,1727954970231,-24900.0,0.00011212,2]
[339759915,1727954970256,-2871.2986912,0.0001133,2]
[339759916,1727954970280,-174.396884,0.00011891,2]
[339759917,1727954970303,-174.396884,0.00011968,2]
[339759918,1727954970326,-174.396884,0.00012046,2]
[339759919,1727954970347,-487.02940715,0.00012122,2]
[339759920,1727954970370,-174.396884,0.00012123,2]
[339759921,1727954970392,-3000.0,0.00012181,2]
[339759922,1727954970415,-174.396884,0.00012201,2]
[339759923,1727954970441,-174.396884,0.00012278,2]
[339759924,1727954970464,-185.17019965,0.000123,2]
[339759925,1727954970488,-3.09698187,0.00012318,2]
[339760007,1727955038003,-174.396884,0.00012356,2]
[339760009,1727955038013,-174.396884,0.00012433,2]
[339760011,1727955038022,-8.57614583,0.0001251,2]
[339760027,1727955040415,-165.82073817,0.0001251,2]
[339760028,1727955040425,-425.434601,0.00012603,2]
[339760029,1727955040435,-6236.8361092,0.0001318,2]
[339760030,1727955040445,-300.0,0.00013587,2]
[339760031,1727955040454,-300.0,0.00013587,2]
[339760032,1727955040463,-2665.96004485,0.00013588,2]
[339760034,1727955040472,-1060.44522435,0.00013598,2]
[339760036,1727955040483,-5000.0,0.000136,2]
[339760038,1727955040492,-150.112233,0.000136,2]
[339760039,1727955040502,-151.997841,0.000136,2]
[339760041,1727955040511,-665.70333917,0.00013667,2]
[339760043,1727955040520,-44995.8639636,0.00013667,2]
[339760044,1727955040530,-1255.40883,0.00013667,2]
[339760046,1727955040540,-50385.3065475,0.00013668,2]
[339760047,1727955040549,-40440.665326,0.00013668,2]
[339760049,1727955040559,-500.0,0.00013673,2]
[339760051,1727955040571,-500.0,0.00013673,2]
[339760053,1727955040586,-500.0,0.00013673,2]
[339760055,1727955040594,-500.49907927,0.00013673,2]
[339760057,1727955040603,-500.0,0.00013673,2]
[339760059,1727955040612,-500.0,0.00013673,2]
[339760060,1727955040622,-500.0,0.00013673,2]
[339760062,1727955040632,-500.0,0.00013673,2]
[339760064,1727955040641,-500.0,0.00013673,2]
[339760066,1727955040653,-500.0,0.00013673,2]
[339760067,1727955040663,-1973.90633352,0.00013678,2]
[339760069,1727955040673,-938.94052896,0.00013678,2]
[339760071,1727955040682,-100770.613095,0.00013678,2]
[339760073,1727955040692,-80881.330652,0.00013678,2]
[339760074,1727955040702,-525.0,0.00013679,2]
[339760076,1727955040711,-150.0,0.00013679,2]
[339760078,1727955040721,-1216.352,0.00013679,2]
[339760080,1727955040731,-151.0,0.00013688,2]
[339760081,1727955040741,-151.0,0.00013688,2]
[339760082,1727955040751,-151.0,0.00013688,2]
[339760083,1727955040761,-151.0,0.00013688,2]
[339760085,1727955040770,-100770.613095,0.00013688,2]
[339760087,1727955040779,-121321.995978,0.00013688,2]
[339760089,1727955040789,-199.58842923,0.00013697,2]
[339760091,1727955040798,-1856.76400927,0.00013697,2]
[339760092,1727955040807,-151.0,0.00013698,2]
[339760093,1727955040816,-151.0,0.00013698,2]
[339760095,1727955040826,-151.0,0.00013698,2]
[339760097,1727955040835,-180.781197,0.00013698,2]
[339760099,1727955040845,-151.0,0.00013698,2]
[339760101,1727955040855,-151.0,0.00013698,2]
[339760103,1727955040864,-151.0,0.00013698,2]
[339760104,1727955040874,-151.0,0.00013698,2]
[339760106,1727955040884,-151.0,0.00013698,2]
[339760107,1727955040894,-151.0,0.00013698,2]
[339760109,1727955040903,-151.0,0.00013698,2]
[339760110,1727955040913,-151.0,0.00013698,2]
[339760111,1727955040925,-151.0,0.00013698,2]
[339760112,1727955040936,-151.0,0.00013698,2]
[339760113,1727955040946,-151.0,0.00013698,2]
[339760114,1727955040956,-151.0,0.00013698,2]
[339760115,1727955040965,-151.0,0.00013698,2]
[339760116,1727955040975,-151.0,0.00013698,2]
[339760117,1727955040984,-280.437678,0.00013698,2]
[339760118,1727955040993,-600.31127679,0.00013698,2]
[339760119,1727955041002,-501.75191345,0.00013698,2]
[339760120,1727955041011,-500.0,0.00013698,2]
[339760121,1727955041020,-151.0,0.00013698,2]
[339760122,1727955041029,-151.0,0.00013698,2]
[339760123,1727955041038,-151.0,0.00013698,2]
[339760124,1727955041048,-151.0,0.00013698,2]
[339760125,1727955041058,-151.0,0.00013698,2]
[339760126,1727955041209,-151.0,0.00013698,2]
[339760127,1727955041219,-151.0,0.00013698,2]
[339760128,1727955041230,-151.0,0.00013698,2]
[339760129,1727955041239,-151.0,0.00013698,2]
[339760130,1727955041249,-151.0,0.00013698,2]
[339760131,1727955041259,-151.0,0.00013698,2]
[339760132,1727955041269,-151.0,0.00013698,2]
[339760133,1727955041278,-151.0,0.00013698,2]
[339760134,1727955041287,-151.0,0.00013698,2]
[339760135,1727955041296,-243.983746,0.00013698,2]
[339760136,1727955041306,-151.0,0.00013698,2]
[339760137,1727955041315,-151.0,0.00013698,2]
[339760138,1727955041325,-151.0,0.00013698,2]
[339760139,1727955041336,-151.445444,0.00013698,2]
[339760140,1727955041347,-500.0,0.00013698,2]
[339760141,1727955041357,-151.0,0.00013698,2]
[339760142,1727955041368,-173.43192,0.00013698,2]
[339760143,1727955041378,-500.0,0.00013698,2]
[339760144,1727955041388,-151.0,0.00013698,2]
[339760145,1727955041397,-151.0,0.00013698,2]
[339760146,1727955041406,-151.0,0.00013698,2]
[339760147,1727955041415,-151.0,0.00013698,2]
[339760148,1727955041424,-151.0,0.00013698,2]
[339760149,1727955041433,-151.472298,0.00013698,2]
[339760150,1727955041442,-151.0,0.00013698,2]
[339760151,1727955041452,-151.0,0.00013698,2]
[339760152,1727955041461,-500.0,0.00013698,2]
[339760153,1727955041470,-151.0,0.00013698,2]
[339760154,1727955041481,-151.0,0.00013698,2]
[339760155,1727955041490,-151.0,0.00013698,2]
[339760156,1727955041501,-151.0,0.00013698,2]
[339760157,1727955041510,-151.0,0.00013698,2]
[339760158,1727955041520,-151.0,0.00013698,2]
[339760159,1727955041530,-151.0,0.00013698,2]
[339760160,1727955041539,-151.0,0.00013698,2]
[339760161,1727955041549,-151.0,0.00013698,2]
[339760162,1727955041559,-500.0,0.00013698,2]
[339760163,1727955041568,-500.0,0.00013698,2]
[339760164,1727955041580,-500.0,0.00013698,2]
[339760165,1727955041590,-500.0,0.00013698,5]
[339760166,1727955041600,-500.0,0.00013698,2]
[339760167,1727955041610,-500.0,0.00013698,2]
[339760168,1727955041622,-500.0,0.00013698,2]
[339760169,1727955041631,-500.0,0.00013698,2]
[339760170,1727955041640,-500.0,0.00013698,2]
[339760171,1727955041650,-626.39630834,0.00013698,2]
[339760172,1727955041661,-500.0,0.00013698,2]
[339760173,1727955041672,-500.0,0.00013698,2]
[339760174,1727955041681,-500.0,0.00013698,2]
[339760175,1727955041690,-500.0,0.00013698,2]
[339760176,1727955041700,-500.0,0.00013698,2]
[339760177,1727955041710,-500.0,0.00013698,2]
[339760178,1727955041720,-500.0,0.00013698,2]
[339760179,1727955041731,-500.0,0.00013698,2]
[339760180,1727955041741,-500.0,0.00013698,2]
[339760181,1727955041751,-500.0,0.00013698,2]
[339760182,1727955041761,-500.0,0.00013698,2]
[339760183,1727955041770,-500.0,0.00013698,2]
[339760184,1727955041781,-500.0,0.00013698,2]
[339760185,1727955041790,-500.0,0.00013698,2]
[339760186,1727955041799,-500.0,0.00013698,2]
[339760187,1727955041809,-236.74140835,0.00013698,2]
[339760194,1727955043119,-353.41859165,0.00013698,2]
[339760195,1727955043128,-590.16,0.00013698,2]
[339760196,1727955043137,-500.0,0.00013698,2]
[339760197,1727955043146,-125.82140839,0.00013698,2]
[339760206,1727955132704,500.0,0.00010201,2]
[339760295,1727956238295,-1168.9282764,0.0001238,2]
[339760296,1727956238307,-5986.6567623,0.00012392,2]
[339760297,1727956238317,-404.162871,0.00012603,2]
[339760298,1727956238327,-465.08427806,0.00013265,2]
[339760299,1727956238337,-350.0,0.000135,2]
[339760300,1727956238347,-7067.94404438,0.00013526,2]
[339760301,1727956238357,-4245.28615147,0.00013568,2]
[339760302,1727956238367,-300.0,0.00013575,2]
[339760303,1727956238377,-300.0,0.00013575,2]
[339760304,1727956238387,-2072.8358072,0.00013578,2]
[339760305,1727956238401,-3310.84238111,0.00013578,2]
[339760307,1727956240187,-4414.89241804,0.00013578,2]
[339760308,1727956240199,-1000.0,0.00013578,2]
[339760309,1727956240210,-668.715538,0.00013578,2]
[339760310,1727956240221,-1059.17741505,0.00013598,2]
[339760311,1727956240231,-235151.965375,0.00013668,2]
[339760312,1727956240241,-56616.9314562,0.00013668,2]
[339760313,1727956240251,-33461.71515114,0.00013669,2]
[339760318,1727956243178,-131.42275956,0.00013669,2]
[339760319,1727956243189,-8088.13306517,0.00013669,2]
[339760320,1727956243201,-500.5015359,0.00013673,2]
[339760321,1727956243212,-500.0,0.00013673,2]
[339760322,1727956243223,-500.0,0.00013673,2]
[339760323,1727956243234,-500.0,0.00013673,2]
[339760324,1727956243245,-161.38905368,0.00013673,2]
[339760325,1727956243255,-500.0,0.00013673,2]
[339760326,1727956243267,-500.30004667,0.00013673,2]
[339760327,1727956243278,-500.24544111,0.00013673,2]
[339760328,1727956243289,-500.0,0.00013673,2]
[339760330,1727956243300,-500.0,0.00013673,2]
[339760331,1727956243311,-500.0,0.00013673,2]
[339760332,1727956243322,-500.36515476,0.00013673,2]
[339760333,1727956243332,-500.0,0.00013673,2]
[339760334,1727956243342,-251.17913207,0.00013673,2]
[339760335,1727956243353,-299.617203,0.00013673,2]
[339760336,1727956243364,-500.0,0.00013673,2]
[339760337,1727956243519,-183.58756788,0.00013673,2]
[339760338,1727956243533,-500.0,0.00013673,2]
[339760339,1727956243543,-500.0,0.00013673,2]
[339760340,1727956243552,-323.6434476,0.00013673,2]
[339760341,1727956243562,-500.28200825,0.00013673,2]
[339760342,1727956243572,-426.67337389,0.00013673,2]
[339760343,1727956243584,-394.08762069,0.00013673,2]
[339760344,1727956243595,-500.0,0.00013673,2]
[339760345,1727956243606,-500.0,0.00013673,2]
[339760346,1727956243618,-500.14582194,0.00013673,2]
[339760347,1727956243631,-500.27471115,0.00013673,2]
[339760348,1727956243643,-501.46688439,0.00013673,2]
[339760349,1727956243655,-501.19983537,0.00013673,2]
[339760350,1727956243666,-199.40120558,0.00013673,2]
[339760351,1727956243676,-500.0,0.00013673,2]
[339760352,1727956243686,-500.10406528,0.00013673,2]
[339760353,1727956243696,-500.43150135,0.00013673,2]
[339760354,1727956243707,-168.23306993,0.00013673,2]
[339760355,1727956243717,-500.0,0.00013673,2]
[339760356,1727956243727,-261.77099263,0.00013673,2]
[339760357,1727956243737,-500.0,0.00013673,2]
[339760358,1727956243746,-500.0,0.00013673,2]
[339760359,1727956243756,-500.1439797,0.00013673,2]
[339760360,1727956243767,-500.0,0.00013673,2]
[339760361,1727956243777,-16176.2661303,0.00013678,2]
[339760362,1727956243787,-150.0,0.00013679,2]
[339760363,1727956243797,-525.0,0.00013679,2]
[339760364,1727956243808,-1218.0,0.00013679,2]
[339760365,1727956243818,-500.3410899,0.0001368,3]
[339760366,1727956243828,-8088.13306517,0.00013682,2]
[339760367,1727956243839,-151.0,0.00013688,2]
[339760368,1727956243850,-151.128611,0.00013688,2]
[339760369,1727956243861,-151.0,0.00013688,2]
[339760370,1727956243871,-151.0,0.00013688,2]
[339760371,1727956243882,-151.0,0.00013688,2]
[339760372,1727956243893,-151.0,0.00013688,2]
[339760373,1727956243904,-72793.1975865,0.00013688,2]
[339760374,1727956243913,-199.58842923,0.00013697,2]
[339760375,1727956243924,-1856.76400927,0.00013697,2]
[339760376,1727956243935,-986.95316676,0.00013698,2]
[339760377,1727956243945,-469.47026448,0.00013698,2]
[339760378,1727956243955,-500.0,0.00013698,2]
[339760379,1727956243966,-160.68083541,0.00013698,2]
[339760380,1727956243980,-343.121848,0.00013698,2]
[339760381,1727956243991,-343.121848,0.00013698,2]
[339760382,1727956244001,-343.121848,0.00013698,2]
[339760383,1727956244011,-343.121848,0.00013698,2]
[339760384,1727956244024,-343.121848,0.00013698,2]
[339760385,1727956244035,-343.121848,0.00013698,2]
[339760386,1727956244048,-343.121848,0.00013698,2]
[339760387,1727956244061,-343.121848,0.00013698,2]
[339760388,1727956244073,-343.121848,0.00013698,2]
[339760389,1727956244082,-343.121848,0.00013698,2]
[339760390,1727956244092,-343.121848,0.00013698,2]
[339760391,1727956244102,-343.121848,0.00013698,2]
[339760392,1727956244112,-343.121848,0.00013698,2]
[339760393,1727956244121,-343.121848,0.00013698,2]
[339760394,1727956244131,-500.70853746,0.00013698,2]
[339760395,1727956244140,-151.0,0.00013698,2]
[339760396,1727956244151,-153.604737,0.00013698,2]
[339760397,1727956244164,-151.0,0.00013698,2]
[339760398,1727956244174,-151.0,0.00013698,2]
[339760399,1727956244184,-151.0,0.00013698,2]
[339760400,1727956244196,-151.0,0.00013698,2]
[339760401,1727956244212,-151.0,0.00013698,2]
[339760402,1727956244223,-151.0,0.00013698,2]
[339760403,1727956244232,-151.0,0.00013698,2]
[339760404,1727956244243,-151.0,0.00013698,2]
[339760405,1727956244252,-151.0,0.00013698,2]
[339760406,1727956244263,-151.0,0.00013698,2]
[339760407,1727956244275,-151.0,0.00013698,2]
[339760408,1727956244287,-151.0,0.00013698,2]
[339760409,1727956244297,-151.0,0.00013698,2]
[339760410,1727956244308,-151.0,0.00013698,2]
[339760411,1727956244320,-151.0,0.00013698,2]
[339760412,1727956244330,-151.0,0.00013698,2]
[339760413,1727956244341,-151.720241,0.00013698,2]
[339760414,1727956244352,-151.0,0.00013698,2]
[339760415,1727956244362,-151.0,0.00013698,2]
[339760416,1727956244372,-151.0,0.00013698,2]
[339760417,1727956244382,-151.0,0.00013698,2]
[339760418,1727956244393,-151.0,0.00013698,2]
[339760419,1727956244402,-156.159495,0.00013698,2]
[339760420,1727956244412,-151.0,0.00013698,2]
[339760421,1727956244421,-151.0,0.00013698,2]
[339760422,1727956244431,-203.742163,0.00013698,2]
[339760423,1727956244442,-151.0,0.00013698,2]
[339760424,1727956244454,-151.0,0.00013698,2]
[339760425,1727956244464,-151.0,0.00013698,2]
[339760426,1727956244473,-151.0,0.00013698,2]
[339760427,1727956244483,-151.0,0.00013698,2]
[339760428,1727956244492,-151.0,0.00013698,2]
[339760429,1727956244501,-151.0,0.00013698,2]
[339760430,1727956244511,-151.0,0.00013698,2]
[339760431,1727956244522,-151.0,0.00013698,2]
[339760432,1727956244532,-151.0,0.00013698,2]
[339760433,1727956244542,-186.976704,0.00013698,2]
[339760434,1727956244552,-151.0,0.00013698,2]
[339760435,1727956244561,-151.0,0.00013698,2]
[339760436,1727956244571,-151.0,0.00013698,2]
[339760437,1727956244581,-151.0,0.00013698,2]
[339760438,1727956244592,-151.0,0.00013698,2]
[339760439,1727956244603,-500.0,0.00013698,2]
[339760440,1727956244615,-500.0,0.00013698,2]
[339760441,1727956244626,-500.0,0.00013698,2]
[339760442,1727956244637,-500.0,0.00013698,2]
[339760443,1727956244648,-564.73615989,0.00013698,2]
[339760444,1727956244658,-500.0,0.00013698,2]
[339760445,1727956244669,-500.0,0.00013698,2]
[339760446,1727956244679,-500.0,0.00013698,2]
[339760447,1727956244689,-354.08601224,0.00013698,2]
[339760448,1727956244701,-300.0,0.00013698,2]
[339760449,1727956244711,-500.0,0.00013698,2]
[339760450,1727956244721,-221.79982652,0.00013698,2]
[339760451,1727956244731,-500.0,0.00013698,2]
[339760452,1727956244742,-500.0,0.00013698,2]
[339760453,1727956244751,-500.0,0.00013698,2]
[339760454,1727956244760,-500.0,0.00013698,2]
[339760455,1727956244770,-500.0,0.00013698,2]
[339760456,1727956244780,-500.0,0.00013698,2]
[339760457,1727956244790,-500.0,0.00013698,2]
[339760458,1727956244799,-500.0,0.00013698,2]
[339760459,1727956244808,-500.0,0.00013698,2]
[339760460,1727956244818,-500.0,0.00013698,2]
[339760461,1727956244828,-500.0,0.00013698,2]
[339760462,1727956244838,-500.0,0.00013698,2]
[339760463,1727956244848,-500.0,0.00013698,2]
[339760464,1727956244857,-462.85258143,0.00013698,2]
[339760465,1727956244867,-500.0,0.00013698,2]
[339760466,1727956244876,-500.0,0.00013698,2]
[339760467,1727956244886,-542.94787596,0.00013698,2]
[339760468,1727956244895,-151.0,0.00013698,2]
[339760469,1727956244905,-151.0,0.00013698,2]
[339760470,1727956244914,-151.0,0.00013698,2]
[339760471,1727956244923,-151.0,0.00013698,2]
[339760472,1727956244933,-151.0,0.00013698,2]
[339760473,1727956244945,-151.0,0.00013698,2]
[339760474,1727956244958,-300.0,0.00013698,2]
[339760475,1727956244969,-321.15890999,0.00013698,2]
[339760476,1727956244984,-151.0,0.00013698,2]
[339760477,1727956244994,-151.0,0.00013698,2]
[339760478,1727956245004,-151.0,0.00013698,2]
[339760479,1727956245016,-500.0,0.00013698,2]
[339760480,1727956245026,-500.0,0.00013698,2]
[339760481,1727956245036,-500.0,0.00013698,2]
[339760482,1727956245045,-500.0,0.00013698,2]
[339760483,1727956245057,-552.7285141,0.00013698,2]
[339760484,1727956245066,-655.16282784,0.00013698,2]
[339760485,1727956245076,-721.35268,0.00013698,2]
[339760486,1727956245087,-721.35268,0.00013698,2]
[339760487,1727956245096,-721.35268,0.00013698,2]
[339760488,1727956245106,-721.35268,0.00013698,2]
[339760489,1727956245116,-721.35268,0.00013698,2]
[339760490,1727956245126,-721.35268,0.00013698,2]
[339760491,1727956245135,-721.35268,0.00013698,2]
[339760492,1727956245145,-721.35268,0.00013698,2]
[339760493,1727956245155,-721.35268,0.00013698,2]
[339760494,1727956245164,-721.35268,0.00013698,2]
[339760495,1727956245174,-721.35268,0.00013698,2]
[339760496,1727956245183,-721.35268,0.00013698,2]
[339760497,1727956245194,-721.35268,0.00013698,2]
[339760498,1727956245204,-721.35268,0.00013698,2]
[339760499,1727956245213,-721.35268,0.00013698,2]
[339760500,1727956245224,-721.35268,0.00013698,2]
[339760501,1727956245234,-721.35268,0.00013698,2]
[339760502,1727956245243,-721.35268,0.00013698,2]
[339760503,1727956245253,-500.0,0.00013698,2]
[339760504,1727956245263,-151.0,0.00013698,2]
[339760505,1727956245273,-500.0,0.00013698,2]
[339760506,1727956245283,-151.0,0.00013698,2]
[339760507,1727956245293,-151.0,0.00013698,2]
[339760508,1727956245304,-151.0,0.00013698,2]
[339760509,1727956245315,-151.445444,0.00013698,2]
[339760510,1727956245325,-151.0,0.00013698,2]
[339760511,1727956245335,-151.0,0.00013698,2]
[339760512,1727956245345,-151.0,0.00013698,2]
[339760513,1727956245356,-151.0,0.00013698,2]
[339760514,1727956245365,-151.0,0.00013698,2]
[339760515,1727956245374,-151.0,0.00013698,2]
[339760516,1727956245384,-151.0,0.00013698,2]
[339760517,1727956245395,-151.0,0.00013698,2]
[339760518,1727956245405,-151.0,0.00013698,2]
[339760519,1727956245416,-151.0,0.00013698,2]
[339760520,1727956245428,-155.617624,0.00013698,2]
[339760521,1727956245438,-500.0,0.00013698,2]
[339760522,1727956245449,-500.0,0.00013698,2]
[339760523,1727956245459,-500.0,0.00013698,2]
[339760524,1727956245470,-500.0,0.00013698,2]
[339760525,1727956245481,-500.0,0.00013698,2]
[339760526,1727956245493,-500.0,0.00013698,2]
[339760527,1727956245503,-674.7,0.00013698,2]
[339760528,1727956245512,-550.83,0.00013698,2]
[339760529,1727956245523,-500.0,0.00013698,2]
[339760530,1727956245534,-500.0,0.00013698,2]
[339760531,1727956245546,-631.28,0.00013698,2]
[339760532,1727956245558,-524.0423311,0.00013698,2]
[339760533,1727956245569,-1106.13,0.00013698,2]
[339760534,1727956245579,-500.0,0.00013698,2]
[339760535,1727956245589,-151.0,0.00013698,2]
[339760536,1727956245600,-151.0,0.00013698,2]
[339760537,1727956245611,-151.0,0.00013698,2]
[339760538,1727956245621,-500.0,0.00013698,2]
[339760539,1727956245631,-500.0,0.00013698,2]
[339760540,1727956245642,-1577.35,0.00013698,2]
[339760541,1727956245654,-500.0,0.00013698,2]
[339760542,1727956245665,-500.0,0.00013698,2]
[339760543,1727956245677,-500.0,0.00013698,2]
[339760544,1727956245688,-501.05725242,0.00013698,2]
[339760545,1727956245702,-500.0,0.00013698,2]
[339760546,1727956245713,-500.0,0.00013698,2]
[339760547,1727956245842,-500.0,0.00013698,2]
[339760548,1727956245853,-500.0,0.00013698,2]
[339760549,1727956245864,-500.0,0.00013698,2]
[339760550,1727956245873,-500.0,0.00013698,2]
[339760551,1727956245883,-512.41999985,0.00013698,2]
[339760552,1727956245893,-500.0,0.00013698,2]
[339760553,1727956245903,-505.9487305,0.00013698,2]
[339760554,1727956245913,-500.0,0.00013698,2]
[339760555,1727956245923,-500.0,0.00013698,2]
[339760556,1727956245933,-725.34,0.00013698,2]
[339760557,1727956245943,-500.0,0.00013698,2]
[339760558,1727956245954,-500.0,0.00013698,2]
[339760559,1727956245963,-500.0,0.00013698,2]
[339760560,1727956245975,-500.0,0.00013698,2]
[339760561,1727956245987,-477.14673964,0.00013698,2]
[339760562,1727956245997,-630.83,0.00013698,2]
[339760563,1727956246007,-1639.7,0.00013698,2]
[339760564,1727956246018,-500.0,0.00013698,2]
[339760565,1727956246028,-500.0,0.00013698,2]
[339760566,1727956246039,-500.0,0.00013698,2]
[339760567,1727956246050,-500.0,0.00013698,2]
[339760568,1727956246061,-329.52798106,0.00013698,2]
[339760569,1727956246071,-822.09,0.00013698,2]
[339760570,1727956246081,-750.39,0.00013698,2]
[339760571,1727956246091,-500.0,0.00013698,2]
[339760572,1727956246101,-780.8,0.00013698,2]
[339760573,1727956246111,-500.0,0.00013698,2]
[339760574,1727956246121,-151.0,0.00013698,2]
[339760575,1727956246131,-151.0,0.00013698,2]
[339760576,1727956246141,-638.92,0.00013698,2]
[339760577,1727956246151,-151.0,0.00013698,2]
[339760578,1727956246160,-151.0,0.00013698,2]
[339760579,1727956246170,-151.0,0.00013698,2]
[339760580,1727956246179,-151.0,0.00013698,2]
[339760581,1727956246189,-151.0,0.00013698,2]
[339760582,1727956246200,-189.00889842,0.00013698,2]
[339760583,1727956246209,-170.261172,0.00013698,2]
[339760584,1727956246219,-525.88,0.00013698,2]
[339760585,1727956246229,-525.88,0.00013698,2]
[339760586,1727956246239,-525.88,0.00013698,2]
[339760587,1727956246248,-525.88,0.00013698,2]
[339760588,1727956246257,-525.88,0.00013698,2]
[339760589,1727956246269,-525.88,0.00013698,2]
[339760590,1727956246278,-525.88,0.00013698,2]
[339760591,1727956246288,-525.88,0.00013698,2]
[339760592,1727956246298,-525.88,0.00013698,2]
[339760593,1727956246309,-525.88,0.00013698,2]
[339760594,1727956246318,-525.88,0.00013698,2]
[339760595,1727956246328,-500.0,0.00013698,2]
[339760596,1727956246338,-525.88,0.00013698,2]
[339760597,1727956246347,-717.8,0.00013698,2]
[339760598,1727956246356,-525.88,0.00013698,2]
[339760599,1727956246366,-525.88,0.00013698,2]
[339760600,1727956246375,-525.88,0.00013698,2]
[339760601,1727956246385,-525.88,0.00013698,2]
[339760602,1727956246395,-525.88,0.00013698,2]
[339760603,1727956246405,-500.0,0.00013698,2]
[339760604,1727956246414,-151.0,0.00013698,2]